{"text_format":"1","workbook":"xlsx","n_sheets":5,"sheets":["Bilans","Headers","Footers","Printer","Aux"],"not_rendered":{"charts":0,"images":0,"macros":1,"external_links":0,"defined_names":3,"comments":0,"pivot_tables":0},"unopened":[],"bounds":{"document_bytes":16777216,"sheet_cells":100000,"rows_first":2000,"rows_last":500,"rows_between":2000,"halvings":0,"cell_chars":16384,"cell_head_chars":4096},"cells_cut":0,"cells_raw":0,"read":"whole","date_system":"1900"}

{"sheet":"Bilans","index":0,"n_rows":56,"n_cols":61,"rows_kept":56,"cut":false,"hidden":false,"merged":[[54,3,54,4],[23,3,23,4],[24,3,24,4],[11,3,11,4],[17,3,17,4],[18,3,18,4],[20,3,20,4],[21,3,21,4],[22,3,22,4],[12,3,12,4],[13,3,13,4],[14,3,14,4],[15,3,15,4],[16,3,16,4],[19,3,19,4],[2,4,2,6],[9,0,9,1],[9,2,9,3],[9,4,9,6],[2,0,2,1],[3,0,3,1],[8,0,8,1],[8,4,8,6],[4,0,7,1],[4,4,6,6],[25,3,25,4],[26,3,26,4],[27,3,27,4],[28,3,28,4],[29,3,29,4],[35,3,35,4],[51,3,51,4],[37,3,37,4],[30,3,30,4],[31,3,31,4],[32,3,32,4],[33,3,33,4],[34,3,34,4],[36,3,36,4],[49,3,49,4],[50,3,50,4],[39,3,39,4],[38,3,38,4],[40,3,40,4],[41,3,41,4],[48,3,48,4],[47,3,47,4],[42,3,42,4],[43,3,43,4],[44,3,44,4],[45,3,45,4],[46,3,46,4]]}
[null,null,null,null,null,null,null,null,null,null,null,null,null,null,null,null,null,null,null,null,null,null,null,null,null,null,null,null,null,null,null,null,null,null,null,null,null,null,null,null,null,null,null,null,null,null,null,null,null,null,null,null,null,"A. Objaśnienie - wykazane w bilansie wartości aktywów trwałych i obrotowych są pomniejszone odpowiednio o umorzenie i odpisy aktualizujące.","A. Objaśnienie - wykazane w bilansie wartości aktywów trwałych i obrotowych są pomniejszone odpowiednio o umorzenie i odpisy aktualizujące.","A. Objaśnienie - wykazane w bilansie wartości aktywów trwałych i obrotowych są pomniejszone odpowiednio o umorzenie i odpisy aktualizujące.","A. Objaśnienie - wykazane w bilansie wartości aktywów trwałych i obrotowych są pomniejszone odpowiednio o umorzenie i odpisy aktualizujące.","A. Objaśnienie - wykazane w bilansie wartości aktywów trwałych i obrotowych są pomniejszone odpowiednio o umorzenie i odpisy aktualizujące.","A. Objaśnienie - wykazane w bilansie wartości aktywów trwałych i obrotowych są pomniejszone odpowiednio o umorzenie i odpisy aktualizujące.","A. Objaśnienie - wykazane w bilansie wartości aktywów trwałych i obrotowych są pomniejszone odpowiednio o umorzenie i odpisy aktualizujące.","A. Objaśnienie - wykazane w bilansie wartości aktywów trwałych i obrotowych są pomniejszone odpowiednio o umorzenie i odpisy aktualizujące."]
[]
["Nazwa i adres ",null,"BILANS",null,"Adresat",null,null,null,null,null,null,null,null,null,null,null,null,null,null,null,null,null,null,null,null,null,null,null,null,null,null,null,null,null,null,null,null,null,null,null,null,null,null,null,null,null,null,null,null,null,null,null,null,"B. Informacje uzupełniające istotne dla oceny rzetelności i przejrzystości sytuacji finansowej i majątkowej:","B. Informacje uzupełniające istotne dla oceny rzetelności i przejrzystości sytuacji finansowej i majątkowej:","B. Informacje uzupełniające istotne dla oceny rzetelności i przejrzystości sytuacji finansowej i majątkowej:","B. Informacje uzupełniające istotne dla oceny rzetelności i przejrzystości sytuacji finansowej i majątkowej:","B. Informacje uzupełniające istotne dla oceny rzetelności i przejrzystości sytuacji finansowej i majątkowej:","B. Informacje uzupełniające istotne dla oceny rzetelności i przejrzystości sytuacji finansowej i majątkowej:","B. Informacje uzupełniające istotne dla oceny rzetelności i przejrzystości sytuacji finansowej i majątkowej:","B. Informacje uzupełniające istotne dla oceny rzetelności i przejrzystości sytuacji finansowej i majątkowej:"]
["jednostki sprawozdawczej"]
["Ministerstwo Klimatu i Środowiska, \nul. Wawelska 52/54, 00-922 Warszawa",null,"jednostki budżetowej",null,"Ministerstwo Finansów, \nFunduszy i Polityki Regionalnej, \nul. Świętokrzyska 12, 00-916 Warszawa"]
[]
[]
[]
["……………………………………"]
["Numer identyfikacyjny REGON",null,"2020-12-31",null,"…………………………………...…………..",null," "]
["001064858"]
["AKTYWA","Stan na początek roku","Stan na koniec roku","PASYWA",null,"Stan na początek roku","Stan na koniec roku"]
["A. Aktywa trwałe",{"$f":"B14+B15+B25+B26+B30","v":882084773.88},{"$f":"C14+C15+C25+C26+C30","v":1060568798.5599999},"A. Fundusze",null,{"$f":"F14+F15+F18+F19","v":477138993.10999966},{"$f":"G14+G15+G18+G19","v":589102784.45000076}]
["I. Wartości niematerialne i prawne",10235536.92,15447929.720000001,"I. Fundusz jednostki",null,-4528882739.5,-11375994076.77]
["II. Rzeczowe aktywa trwałe",{"$f":"B16+B23+B24","v":299737293.09999996},{"$f":"C16+C23+C24","v":367093966.30999994},"II. Wynik finansowy netto (+,-)",null,{"$f":"F16+F17","v":5006021732.6099997},{"$f":"G16+G17","v":11965096861.220001}]
["1. Środki trwałe",{"$f":"B17+B19+B20+B21+B22","v":227899769.45999998},{"$f":"C17+C19+C20+C21+C22","v":348427318.66999996},"1. Zysk netto (+)",null,5461632117.4200001,12450596211.27]
["1.1. Grunty",32266535.48,43212190.789999999,"2. Strata netto (-)",null,-455610384.81,-485499350.05000001]
["1.1.1. Grunty stanowiące własność jednostki samorządu terytorialnego, przekazane w użytkowanie wieczyste innym podmiotom",0,0,"III. Odpisy z wyniku finansowego (nadwyżka środków obrotowych) (-)",null,0,0]
["1.2. Budynki, lokale i obiekty inżynierii lądowej i wodnej",126232398.48999999,168314942.83000001,"IV. Fundusz mienia zlikwidowanych jednostek",null,0,0]
["1.3. Urządzenia techniczne i maszyny",12004149.67,17232015.329999998,"B. Fundusze placówek",null,0,0]
["1.4. Środki transportu",12381935.880000001,33871845.759999998,"C. Państwowe fundusze celowe",null,0,0]
["1.5. Inne środki trwałe",45014749.939999998,85796323.959999993,"D. Zobowiązania i rezerwy na zobowiązania",null,{"$f":"F23+F24+F35+F36","v":1030671164.4200001},{"$f":"G23+G24+G35+G36","v":4529598287.6800003}]
["2. Środki trwałe w budowie (inwestycje)",71837523.640000001,18666647.640000001,"I. Zobowiązania długoterminowe",null,0,0]
["3. Zaliczki na środki trwałe w budowie (inwestycje)",0,0,"II. Zobowiązania krótkoterminowe",null,{"$f":"F25+F26+F27+F28+F29+F30+F31+F32","v":334074518.30000001},{"$f":"G25+G26+G27+G28+G29+G30+G31+G32","v":3702464232.54}]
["III. Należności długoterminowe",572111943.86000001,678026902.52999997,"1. Zobowiązania z tytułu dostaw i usług",null,5771821.4100000001,24431158.280000001]
["IV. Długoterminowe aktywa finansowe",{"$f":"B27+B28+B29","v":0},0,"2. Zobowiązania wobec budżetów",null,184713.38,193211]
["1. Akcje i udziały",0,0,"3. Zobowiązania z tytułu ubezpieczeń i innych świadczeń",null,3788877.93,4571065.0199999996]
["2. Inne papiery wartościowe",0,0,"4. Zobowiązania z tytułu wynagrodzeń",null,17133432.98,19725775.920000002]
["3. Inne długoterminowe aktywa finansowe",0,0,"5. Pozostałe zobowiązania",null,9985974.1899999995,3187496543.1199999]
["V. Wartość mienia zlikwidowanych jednostek",0,0,"6. Sumy obce (depozytowe, zabezpieczenie wykonania umów)",null,12463601.59,10420250.09]
["B. Aktywa obrotowe",{"$f":"B32+B37+B43+B51","v":625725383.6500001},{"$f":"C32+C37+C43+C51","v":4058132273.5699997},"7. Rozliczenia z tytułu środków na wydatki budżetowe i z tytułu dochodów budżetowych",null,280799013.67000002,399309697.85000002]
["I. Zapasy",{"$f":"B33+B34+B35+B36","v":552372.74},{"$f":"C33+C34+C35+C36","v":715334.2},"8. Fundusze specjalne",null,3947083.15,56316531.259999998]
["1. Materiały",536047.1,694148.1,"8.1. Zakładowy Fundusz Świadczeń Socjalnych",null,3816087.11,4284980.95]
["2. Półprodukty i produkty w toku",0,0,"8.2. Inne fundusze",null,130996.04,52031550.310000002]
["3. Produkty gotowe",0,0,"III. Rezerwy na zobowiązania",null,77820369.859999999,93752587.180000007]
["4. Towary",16325.64,21186.1,"IV. Rozliczenia międzyokresowe",null,618776276.25999999,733381467.96000004]
["II. Należności krótkoterminowe",{"$f":"B38+B39+B40+B41+B42","v":598066874.73000002},{"$f":"C38+C39+C40+C41+C42","v":3969793947.6999998}]
["1. Należności z tytułu dostaw i usług",44501410.060000002,53168275.939999998]
["2. Należności od budżetów",2729.02,9727.2800000000007]
["3. Należności z tytułu ubezpieczeń i innych świadczeń",21826.66,20409.169999999998]
["4. Pozostałe należności",3932187.47,3138794258.54]
["5. Rozliczenia z tytułu środków na wydatki budżetowe i z tytułu dochodów budżetowych",549608721.51999998,777801276.76999998]
["III. Krótkoterminowe aktywa finansowe",{"$f":"B44+B45+B46+B47+B48+B49+B50","v":24900953.210000001},{"$f":"C44+C45+C46+C47+C48+C49+C50","v":67290279.909999996}]
["1. Środki pieniężne w kasie",0,0]
["2. Środki pieniężne na rachunkach bankowych",24826486.710000001,15532775.189999999]
["3. Środki pieniężne państwowego funduszu celowego",0,51740729.719999999]
["4. Inne środki pieniężne",74466.5,16775]
["5. Akcje lub udziały",0,0]
["6. Inne papiery wartościowe",0,0]
["7. Inne krótkoterminowe aktywa finansowe",0,0]
["IV. Rozliczenia międzyokresowe",2205182.9700000002,20332711.760000002]
["Suma aktywów",{"$f":"B13+B31","v":1507810157.5300002},{"$f":"C13+C31","v":5118701072.1299992},"Suma pasywów",null,{"$f":"F13+F20+F21+F22","v":1507810157.5299997},{"$f":"G13+G20+G21+G22","v":5118701072.1300011}]
[]
["WR odjęto za r. 2020"]
["Naleznosci z tyt. Dos.i us",null,-24403.119999999999,"Zobowiązania z tyt. dostaw i usług",null,null,-29454.44]
["Nalezności długoterminowe",null,-5051.32]

{"sheet":"Headers","index":1,"n_rows":12,"n_cols":29,"rows_kept":12,"cut":false,"hidden":true,"merged":[[2,4,2,6],[11,3,11,4],[9,0,9,1],[9,2,9,3],[9,4,9,6],[2,0,2,1],[3,0,3,1],[8,0,8,1],[8,4,8,6],[4,0,7,1]]}
[null,null,null,null,null,null,null,null,null,null,null,null,null,null,null,null,null,null,null,null,null,null,null,null,null,null,null,null,16469]
[null,null,null,null,null,null,null,null,null,null,null,null,null,null,null,null,null,null,null,null,null,null,null,null,null,null,null,null,161]
["Nazwa i adres ",null,"BILANS",null,"Adresat",null,null,null,null,null,null,null,null,null,null,null,null,null,null,null,null,null,null,null,null,null,null,null,93]
["jednostki sprawozdawczej",null,null,null,null,null,null,null,null,null,null,null,null,null,null,null,null,null,null,null,null,null,null,null,null,null,null,null,"2008-01-01"]
[null,null,"jednostki budżetowej",null,null,null,null,null,null,null,null,null,null,null,null,null,null,null,null,null,null,null,null,null,null,null,null,null,"2008-12-31"]
[null,null,null,null,null,null,null,null,null,null,null,null,null,null,null,null,null,null,null,null,null,null,null,null,null,null,null,null,2008]
[null,null,null,null,null,null,null,null,null,null,null,null,null,null,null,null,null,null,null,null,null,null,null,null,null,null,null,null,"R"]
[null,null,null,null,null,null,null,null,null,null,null,null,null,null,null,null,null,null,null,null,null,null,null,null,null,null,null,null,"PJB"]
["……………………………………",null,null,null,null,null,null,null,null,null,null,null,null,null,null,null,null,null,null,null,null,null,null,null,null,null,null,null,"N"]
["Numer identyfikacyjny REGON",null,"2018-12-31",null,"…………………………………...…………..",null," "]
[]
["AKTYWA","Stan na początek roku","Stan na koniec roku","PASYWA",null,"Stan na początek roku","Stan na koniec roku"]

{"sheet":"Footers","index":2,"n_rows":8,"n_cols":5,"rows_kept":8,"cut":false,"hidden":true,"merged":[[7,0,7,1],[4,0,4,1],[5,0,5,1],[6,0,6,1],[4,4,4,6],[5,4,5,6],[6,4,6,6],[7,4,7,6]]}
[]
[]
[]
[]
[".................................................................",null,null,null,"................................................................."]
["Rola dla podpisu pierwszego",null,null,null,"Rola dla podpisu drugiego"]
[" imię i nazwisko",null,null,null," imię i nazwisko"]
["(data i godzina z pola audytowego)",null,null,null,"(data i godzina z pola audytowego)"]

{"sheet":"Printer","index":3,"n_rows":61,"n_cols":7,"rows_kept":61,"cut":false,"hidden":true,"merged":[[59,4,59,6],[60,4,60,6],[2,0,2,1],[2,4,2,6],[3,0,3,1],[8,4,8,6],[19,3,19,4],[9,2,9,3],[9,4,9,6],[11,3,11,4],[12,3,12,4],[13,3,13,4],[14,3,14,4],[15,3,15,4],[16,3,16,4],[17,3,17,4],[18,3,18,4],[31,3,31,4],[20,3,20,4],[21,3,21,4],[22,3,22,4],[23,3,23,4],[24,3,24,4],[25,3,25,4],[26,3,26,4],[27,3,27,4],[28,3,28,4],[29,3,29,4],[30,3,30,4],[43,3,43,4],[32,3,32,4],[33,3,33,4],[34,3,34,4],[35,3,35,4],[36,3,36,4],[37,3,37,4],[38,3,38,4],[39,3,39,4],[40,3,40,4],[41,3,41,4],[42,3,42,4],[50,3,50,4],[51,3,51,4],[58,0,58,1],[44,3,44,4],[45,3,45,4],[46,3,46,4],[47,3,47,4],[48,3,48,4],[49,3,49,4],[57,4,57,6],[58,4,58,6],[59,0,59,1],[60,0,60,1],[8,0,8,1],[9,0,9,1],[4,0,7,1],[57,0,57,1]]}
[]
[]
["Nazwa i adres ",null,"BILANS",null,"Adresat"]
["jednostki sprawozdawczej"]
[null,null,"jednostki budżetowej"]
[]
[]
[]
["……………………………………"]
["Numer identyfikacyjny REGON",null,"2018-12-31",null,"…………………………………...…………..",null," "]
[]
["AKTYWA","Stan na początek roku","Stan na koniec roku","PASYWA",null,"Stan na początek roku","Stan na koniec roku"]
["A. Aktywa trwałe",0,0,"A. Fundusze",null,0,0]
["I. Wartości niematerialne i prawne",0,0,"I. Fundusz jednostki",null,0,0]
["II. Rzeczowe aktywa trwałe",0,0,"II. Wynik finansowy netto (+,-)",null,0,0]
["1. Środki trwałe",0,0,"1. Zysk netto (+)",null,0,0]
["1.1. Grunty",0,0,"2. Strata netto (-)",null,0,0]
["1.1.1. Grunty stanowiące własność jednostki samorządu terytorialnego, przekazane w użytkowanie wieczyste innym podmiotom",0,0,"III. Odpisy z wyniku finansowego (nadwyżka środków obrotowych) (-)",null,0,0]
["1.2. Budynki, lokale i obiekty inżynierii lądowej i wodnej",0,0,"IV. Fundusz mienia zlikwidowanych jednostek",null,0,0]
["1.3. Urządzenia techniczne i maszyny",0,0,"B. Fundusze placówek",null,0,0]
["1.4. Środki transportu",0,0,"C. Państwowe fundusze celowe",null,0,0]
["1.5. Inne środki trwałe",0,0,"D. Zobowiązania i rezerwy na zobowiązania",null,0,0]
["2. Środki trwałe w budowie (inwestycje)",0,0,"I. Zobowiązania długoterminowe",null,0,0]
["3. Zaliczki na środki trwałe w budowie (inwestycje)",0,0,"II. Zobowiązania krótkoterminowe",null,0,0]
["III. Należności długoterminowe",0,0,"1. Zobowiązania z tytułu dostaw i usług",null,0,0]
["IV. Długoterminowe aktywa finansowe",0,0,"2. Zobowiązania wobec budżetów",null,0,0]
["1. Akcje i udziały",0,0,"3. Zobowiązania z tytułu ubezpieczeń i innych świadczeń",null,0,0]
["2. Inne papiery wartościowe",0,0,"4. Zobowiązania z tytułu wynagrodzeń",null,0,0]
["3. Inne długoterminowe aktywa finansowe",0,0,"5. Pozostałe zobowiązania",null,0,0]
["V. Wartość mienia zlikwidowanych jednostek",0,0,"6. Sumy obce (depozytowe, zabezpieczenie wykonania umów)",null,0,0]
["B. Aktywa obrotowe",0,0,"7. Rozliczenia z tytułu środków na wydatki budżetowe i z tytułu dochodów budżetowych",null,0,0]
["I. Zapasy",0,0,"8. Fundusze specjalne",null,0,0]
["1. Materiały",0,0,"8.1. Zakładowy Fundusz Świadczeń Socjalnych",null,0,0]
["2. Półprodukty i produkty w toku",0,0,"8.2. Inne fundusze",null,0,0]
["3. Produkty gotowe",0,0,"III. Rezerwy na zobowiązania",null,0,0]
["4. Towary",0,0,"IV. Rozliczenia międzyokresowe",null,0,0]
["II. Należności krótkoterminowe",0,0]
["1. Należności z tytułu dostaw i usług",0,0]
["2. Należności od budżetów",0,0]
["3. Należności z tytułu ubezpieczeń i innych świadczeń",0,0]
["4. Pozostałe należności",0,0]
["5. Rozliczenia z tytułu środków na wydatki budżetowe i z tytułu dochodów budżetowych",0,0]
["III. Krótkoterminowe aktywa finansowe",0,0]
["1. Środki pieniężne w kasie",0,0]
["2. Środki pieniężne na rachunkach bankowych",0,0]
["3. Środki pieniężne państwowego funduszu celowego",0,0]
["4. Inne środki pieniężne",0,0]
["5. Akcje lub udziały",0,0]
["6. Inne papiery wartościowe",0,0]
["7. Inne krótkoterminowe aktywa finansowe",0,0]
["IV. Rozliczenia międzyokresowe",0,0]
["Suma aktywów",0,0,"Suma pasywów",null,0,0]
[]
[]
[]
[]
[]
[".................................................................",null,null,null,"................................................................."]
["Rola dla podpisu pierwszego",null,null,null,"Rola dla podpisu drugiego"]
[" imię i nazwisko",null,null,null," imię i nazwisko"]
["(data i godzina z pola audytowego)",null,null,null,"(data i godzina z pola audytowego)"]

{"sheet":"Aux","index":4,"n_rows":52,"n_cols":10,"rows_kept":52,"cut":false,"hidden":true,"merged":[]}
["-843","-","19"]
["BILANS.REP"]
["BILANS.REP.CPL"]
["BU"]
["2018"]
["Y01.20189"]
["wer. 1.3 @ 2018-12-04 15:57:35"]
[58,58]
[null,53]
[null,53]
[]
[]
["BILANS.POZ_TOP","BILANS.POZ_TOP.10","A. Aktywa trwałe",null,null,null,null,"BILANS.POZ_BOTTOM","BILANS.POZ_BOTTOM.10","A. Fundusze"]
["BILANS.POZ_TOP","BILANS.POZ_TOP.11","I. Wartości niematerialne i prawne",null,null,null,null,"BILANS.POZ_BOTTOM","BILANS.POZ_BOTTOM.11","I. Fundusz jednostki"]
["BILANS.POZ_TOP","BILANS.POZ_TOP.12","II. Rzeczowe aktywa trwałe",null,null,null,null,"BILANS.POZ_BOTTOM","BILANS.POZ_BOTTOM.12","II. Wynik finansowy netto (+,-)"]
["BILANS.POZ_TOP","BILANS.POZ_TOP.13","1. Środki trwałe",null,null,null,null,"BILANS.POZ_BOTTOM","BILANS.POZ_BOTTOM.13","1. Zysk netto (+)"]
["BILANS.POZ_TOP","BILANS.POZ_TOP.14","1.1. Grunty",null,null,null,null,"BILANS.POZ_BOTTOM","BILANS.POZ_BOTTOM.14","2. Strata netto (-)"]
["BILANS.POZ_TOP","BILANS.POZ_TOP.48","1.1.1. Grunty stanowiące własność jednostki samorządu terytorialnego, przekazane w użytkowanie wieczyste innym podmiotom",null,null,null,null,"BILANS.POZ_BOTTOM","BILANS.POZ_BOTTOM.15","III. Odpisy z wyniku finansowego (nadwyżka środków obrotowych) (-)"]
["BILANS.POZ_TOP","BILANS.POZ_TOP.15","1.2. Budynki, lokale i obiekty inżynierii lądowej i wodnej",null,null,null,null,"BILANS.POZ_BOTTOM","BILANS.POZ_BOTTOM.17","IV. Fundusz mienia zlikwidowanych jednostek"]
["BILANS.POZ_TOP","BILANS.POZ_TOP.16","1.3. Urządzenia techniczne i maszyny",null,null,null,null,"BILANS.POZ_BOTTOM","BILANS.POZ_BOTTOM.36","B. Fundusze placówek"]
["BILANS.POZ_TOP","BILANS.POZ_TOP.17","1.4. Środki transportu",null,null,null,null,"BILANS.POZ_BOTTOM","BILANS.POZ_BOTTOM.18","C. Państwowe fundusze celowe"]
["BILANS.POZ_TOP","BILANS.POZ_TOP.18","1.5. Inne środki trwałe",null,null,null,null,"BILANS.POZ_BOTTOM","BILANS.POZ_BOTTOM.19","D. Zobowiązania i rezerwy na zobowiązania"]
["BILANS.POZ_TOP","BILANS.POZ_TOP.19","2. Środki trwałe w budowie (inwestycje)",null,null,null,null,"BILANS.POZ_BOTTOM","BILANS.POZ_BOTTOM.20","I. Zobowiązania długoterminowe"]
["BILANS.POZ_TOP","BILANS.POZ_TOP.20","3. Zaliczki na środki trwałe w budowie (inwestycje)",null,null,null,null,"BILANS.POZ_BOTTOM","BILANS.POZ_BOTTOM.21","II. Zobowiązania krótkoterminowe"]
["BILANS.POZ_TOP","BILANS.POZ_TOP.21","III. Należności długoterminowe",null,null,null,null,"BILANS.POZ_BOTTOM","BILANS.POZ_BOTTOM.22","1. Zobowiązania z tytułu dostaw i usług"]
["BILANS.POZ_TOP","BILANS.POZ_TOP.22","IV. Długoterminowe aktywa finansowe",null,null,null,null,"BILANS.POZ_BOTTOM","BILANS.POZ_BOTTOM.23","2. Zobowiązania wobec budżetów"]
["BILANS.POZ_TOP","BILANS.POZ_TOP.23","1. Akcje i udziały",null,null,null,null,"BILANS.POZ_BOTTOM","BILANS.POZ_BOTTOM.24","3. Zobowiązania z tytułu ubezpieczeń i innych świadczeń"]
["BILANS.POZ_TOP","BILANS.POZ_TOP.24","2. Inne papiery wartościowe",null,null,null,null,"BILANS.POZ_BOTTOM","BILANS.POZ_BOTTOM.25","4. Zobowiązania z tytułu wynagrodzeń"]
["BILANS.POZ_TOP","BILANS.POZ_TOP.25","3. Inne długoterminowe aktywa finansowe",null,null,null,null,"BILANS.POZ_BOTTOM","BILANS.POZ_BOTTOM.26","5. Pozostałe zobowiązania"]
["BILANS.POZ_TOP","BILANS.POZ_TOP.26","V. Wartość mienia zlikwidowanych jednostek",null,null,null,null,"BILANS.POZ_BOTTOM","BILANS.POZ_BOTTOM.27","6. Sumy obce (depozytowe, zabezpieczenie wykonania umów)"]
["BILANS.POZ_TOP","BILANS.POZ_TOP.27","B. Aktywa obrotowe",null,null,null,null,"BILANS.POZ_BOTTOM","BILANS.POZ_BOTTOM.28","7. Rozliczenia z tytułu środków na wydatki budżetowe i z tytułu dochodów budżetowych"]
["BILANS.POZ_TOP","BILANS.POZ_TOP.28","I. Zapasy",null,null,null,null,"BILANS.POZ_BOTTOM","BILANS.POZ_BOTTOM.30","8. Fundusze specjalne"]
["BILANS.POZ_TOP","BILANS.POZ_TOP.29","1. Materiały",null,null,null,null,"BILANS.POZ_BOTTOM","BILANS.POZ_BOTTOM.31","8.1. Zakładowy Fundusz Świadczeń Socjalnych"]
["BILANS.POZ_TOP","BILANS.POZ_TOP.30","2. Półprodukty i produkty w toku",null,null,null,null,"BILANS.POZ_BOTTOM","BILANS.POZ_BOTTOM.32","8.2. Inne fundusze"]
["BILANS.POZ_TOP","BILANS.POZ_TOP.31","3. Produkty gotowe",null,null,null,null,"BILANS.POZ_BOTTOM","BILANS.POZ_BOTTOM.29","III. Rezerwy na zobowiązania"]
["BILANS.POZ_TOP","BILANS.POZ_TOP.32","4. Towary",null,null,null,null,"BILANS.POZ_BOTTOM","BILANS.POZ_BOTTOM.33","IV. Rozliczenia międzyokresowe"]
["BILANS.POZ_TOP","BILANS.POZ_TOP.33","II. Należności krótkoterminowe"]
["BILANS.POZ_TOP","BILANS.POZ_TOP.34","1. Należności z tytułu dostaw i usług"]
["BILANS.POZ_TOP","BILANS.POZ_TOP.35","2. Należności od budżetów"]
["BILANS.POZ_TOP","BILANS.POZ_TOP.36","3. Należności z tytułu ubezpieczeń i innych świadczeń"]
["BILANS.POZ_TOP","BILANS.POZ_TOP.37","4. Pozostałe należności"]
["BILANS.POZ_TOP","BILANS.POZ_TOP.38","5. Rozliczenia z tytułu środków na wydatki budżetowe i z tytułu dochodów budżetowych"]
["BILANS.POZ_TOP","BILANS.POZ_TOP.39","III. Krótkoterminowe aktywa finansowe"]
["BILANS.POZ_TOP","BILANS.POZ_TOP.40","1. Środki pieniężne w kasie"]
["BILANS.POZ_TOP","BILANS.POZ_TOP.41","2. Środki pieniężne na rachunkach bankowych"]
["BILANS.POZ_TOP","BILANS.POZ_TOP.42","3. Środki pieniężne państwowego funduszu celowego"]
["BILANS.POZ_TOP","BILANS.POZ_TOP.43","4. Inne środki pieniężne"]
["BILANS.POZ_TOP","BILANS.POZ_TOP.44","5. Akcje lub udziały"]
["BILANS.POZ_TOP","BILANS.POZ_TOP.45","6. Inne papiery wartościowe"]
["BILANS.POZ_TOP","BILANS.POZ_TOP.46","7. Inne krótkoterminowe aktywa finansowe"]
["BILANS.POZ_TOP","BILANS.POZ_TOP.47","IV. Rozliczenia międzyokresowe"]
["BILANS.POZ_TOP","BILANS.POZ_TOP.SUM","Suma aktywów",null,null,null,null,"BILANS.POZ_BOTTOM","BILANS.POZ_BOTTOM.SUM","Suma pasywów"]